[Event "Titled Tuesday Blitz November 01 Early 2022"]
[White "Parpiev, Isaak"]
[Black "Zhigalko, Sergei"]
[WhiteFideId "34281576"]
[BlackFideId "13502956"]
[WhiteElo "2100"]
[BlackElo "2662"]
[Result "1-0"]
[Round "04"]
[TimeControl "180+1"]
[Date "2022.11.01"]
[WhiteClock "0:00:07"]
[BlackClock "0:00:02"]

1. e4 {[%clk 0:03:00]}  c5 {[%clk 0:02:58]} 2. Nf3 {[%clk 0:03:00]}  Nc6 {[%clk 0:02:58]} 3. d4 {[%clk 0:02:57]}  cxd4 {[%clk 0:02:59]} 4. Nxd4 {[%clk 0:02:58]}  Nf6 {[%clk 0:02:59]} 5. Nc3 {[%clk 0:02:57]}  e5 {[%clk 0:02:59]} 6. Ndb5 {[%clk 0:02:57]}  d6 {[%clk 0:03:00]} 7. Nd5 {[%clk 0:02:57]}  Nxd5 {[%clk 0:03:00]} 8. exd5 {[%clk 0:02:58]}  Nb8 {[%clk 0:03:00]} 9. a4 {[%clk 0:02:58]}  Be7 {[%clk 0:03:01]} 10. Be2 {[%clk 0:02:57]}  O-O {[%clk 0:03:01]} 11. O-O {[%clk 0:02:57]}  f5 {[%clk 0:02:59]} 12. f4 {[%clk 0:02:46]}  a6 {[%clk 0:02:52]} 13. Na3 {[%clk 0:02:44]}  Nd7 {[%clk 0:02:49]} 14. Kh1 {[%clk 0:02:43]}  Bf6 {[%clk 0:02:45]} 15. c3 {[%clk 0:02:40]}  Qe7 {[%clk 0:02:25]} 16. a5 {[%clk 0:02:22]}  exf4 {[%clk 0:02:24]} 17. Bxf4 {[%clk 0:02:21]}  Ne5 {[%clk 0:02:24]} 18. Nc4 {[%clk 0:02:13]}  Bd7 {[%clk 0:02:25]} 19. Nb6 {[%clk 0:02:07]}  Rae8 {[%clk 0:02:24]} 20. Bd3 {[%clk 0:02:03]}  g6 {[%clk 0:02:23]} 21. Qd2 {[%clk 0:01:55]}  Qd8 {[%clk 0:01:51]} 22. b4 {[%clk 0:01:33]}  Nxd3 {[%clk 0:01:30]} 23. Qxd3 {[%clk 0:01:33]}  Bb5 {[%clk 0:01:30]} 24. c4 {[%clk 0:01:28]}  Bxa1 {[%clk 0:01:31]} 25. Rxa1 {[%clk 0:01:25]}  Re4 {[%clk 0:01:29]} 26. Rf1 {[%clk 0:00:52]}  Be8 {[%clk 0:01:16]} 27. h3 {[%clk 0:00:41]}  g5 {[%clk 0:01:01]} 28. Bc1 {[%clk 0:00:36]}  Bg6 {[%clk 0:00:59]} 29. Bb2 {[%clk 0:00:31]}  Qe7 {[%clk 0:00:48]} 30. Qc3 {[%clk 0:00:26]}  Qe5 {[%clk 0:00:48]} 31. Qb3 {[%clk 0:00:11]}  Qe7 {[%clk 0:00:32]} 32. Qc3 {[%clk 0:00:11]}  Re5 {[%clk 0:00:24]} 33. c5 {[%clk 0:00:11]}  Re8 {[%clk 0:00:25]} 34. Nc4 {[%clk 0:00:07]}  dxc5 {[%clk 0:00:01]} 35. Qxe5 {[%clk 0:00:07]}  Qxe5 {[%clk 0:00:01]} 36. Bxe5 {[%clk 0:00:06]}  cxb4 {[%clk 0:00:02]} 37. d6 {[%clk 0:00:07]}  f4 {[%clk 0:00:01]} 38. d7 {[%clk 0:00:07]}  Rd8 {[%clk 0:00:02]} 39. Nb6 {[%clk 0:00:07]}  b3 {[%clk 0:00:02]} 40. Bf6 {[%clk 0:00:07]}  b2 {[%clk 0:00:01]} 41. Bxd8 {[%clk 0:00:06]}  Bd3 {[%clk 0:00:01]} 42. Rd1 {[%clk 0:00:06]}  b1=Q {[%clk 0:00:01]} 43. Rxb1 {[%clk 0:00:06]}  Bxb1 {[%clk 0:00:02]} 44. Bf6 {[%clk 0:00:06]}  Bf5 {[%clk 0:00:02]} 45. d8=Q+ {[%clk 0:00:07]} 1-0


[Site "https://www.chess.com"]

[Event "Titled Tuesday Blitz November 01 Early 2022"]
[White "Perez Rodriguez, Jennifer"]
[Black "Melikyan, Gnel"]
[WhiteFideId "3507831"]
[BlackFideId "54109990"]
[WhiteElo "2170"]
[BlackElo "2138"]
[Result "0-1"]
[Round "04"]
[TimeControl "180+1"]
[Date "2022.11.02"]
[WhiteClock "0:02:16"]
[BlackClock "0:02:03"]

1. e4 {[%clk 0:03:00]}  Nf6 {[%clk 0:02:58]} 2. Nc3 {[%clk 0:03:00]}  c6 {[%clk 0:02:55]} 3. d4 {[%clk 0:02:59]}  d6 {[%clk 0:02:52]} 4. Be3 {[%clk 0:02:56]}  e5 {[%clk 0:02:53]} 5. f3 {[%clk 0:02:53]}  Be7 {[%clk 0:02:53]} 6. a4 {[%clk 0:02:53]}  Be6 {[%clk 0:02:51]} 7. a5 {[%clk 0:02:52]}  Nbd7 {[%clk 0:02:50]} 8. d5 {[%clk 0:02:51]}  cxd5 {[%clk 0:02:50]} 9. exd5 {[%clk 0:02:51]}  Bf5 {[%clk 0:02:50]} 10. a6 {[%clk 0:02:45]}  b6 {[%clk 0:02:48]} 11. Bb5 {[%clk 0:02:45]}  O-O {[%clk 0:02:46]} 12. Nge2 {[%clk 0:02:44]}  Rc8 {[%clk 0:02:41]} 13. Bc6 {[%clk 0:02:41]}  Nb8 {[%clk 0:02:37]} 14. Bb7 {[%clk 0:02:36]}  Rc7 {[%clk 0:02:36]} 15. Bxb6 {[%clk 0:02:30]}  Nxa6 {[%clk 0:02:08]} 16. Bxc7 {[%clk 0:02:28]}  Nxc7 {[%clk 0:02:08]} 17. Bc6 {[%clk 0:02:20]}  Qb8 {[%clk 0:02:07]} 18. O-O {[%clk 0:02:17]}  Qxb2 {[%clk 0:02:06]} 19. Rxa7 {[%clk 0:02:16]}  Qb6+ {[%clk 0:02:03]} 0-1


[Site "https://www.chess.com"]

[Event "Titled Tuesday Blitz November 01 Early 2022"]
[White "Pultinevicius, Paulius"]
[Black "Suleymanli, Suleyman"]
[WhiteFideId "12809390"]
[BlackFideId "13416375"]
[WhiteElo "2500"]
[BlackElo "2204"]
[Result "1-0"]
[Round "04"]
[TimeControl "180+1"]
[Date "2022.11.02"]
[WhiteClock "0:00:37"]
[BlackClock "0:00:18"]

1. d4 {[%clk 0:02:59]}  d5 {[%clk 0:02:58]} 2. c4 {[%clk 0:02:58]}  dxc4 {[%clk 0:02:59]} 3. e4 {[%clk 0:02:58]}  Nf6 {[%clk 0:02:59]} 4. e5 {[%clk 0:02:58]}  Nd5 {[%clk 0:02:59]} 5. Bxc4 {[%clk 0:02:59]}  Nb6 {[%clk 0:03:00]} 6. Bb3 {[%clk 0:02:57]}  Nc6 {[%clk 0:02:58]} 7. Ne2 {[%clk 0:02:57]}  Bf5 {[%clk 0:02:57]} 8. Nbc3 {[%clk 0:02:56]}  e6 {[%clk 0:02:57]} 9. Be3 {[%clk 0:02:56]}  Be7 {[%clk 0:02:57]} 10. a3 {[%clk 0:02:52]}  O-O {[%clk 0:02:54]} 11. O-O {[%clk 0:02:47]}  Na5 {[%clk 0:02:51]} 12. Bc2 {[%clk 0:02:47]}  Bxc2 {[%clk 0:02:49]} 13. Qxc2 {[%clk 0:02:48]}  Nac4 {[%clk 0:02:50]} 14. Rad1 {[%clk 0:02:42]}  c6 {[%clk 0:02:48]} 15. Bc1 {[%clk 0:02:41]}  Qd7 {[%clk 0:02:44]} 16. Ne4 {[%clk 0:02:37]}  Na5 {[%clk 0:02:33]} 17. Nc5 {[%clk 0:02:22]}  Qc7 {[%clk 0:02:33]} 18. f4 {[%clk 0:02:16]}  Rad8 {[%clk 0:02:31]} 19. Kh1 {[%clk 0:01:53]}  Nd5 {[%clk 0:02:17]} 20. b4 {[%clk 0:01:49]}  b6 {[%clk 0:02:17]} 21. Ne4 {[%clk 0:01:43]}  Nb7 {[%clk 0:02:15]} 22. f5 {[%clk 0:01:43]}  exf5 {[%clk 0:02:13]} 23. Rxf5 {[%clk 0:01:44]}  c5 {[%clk 0:02:12]} 24. dxc5 {[%clk 0:01:35]}  bxc5 {[%clk 0:02:09]} 25. Ng5 {[%clk 0:00:54]}  Bxg5 {[%clk 0:02:05]} 26. Bxg5 {[%clk 0:00:54]}  Rd7 {[%clk 0:01:57]} 27. e6 {[%clk 0:00:53]}  fxe6 {[%clk 0:01:55]} 28. Rxf8+ {[%clk 0:00:54]}  Kxf8 {[%clk 0:01:56]} 29. Qxh7 {[%clk 0:00:54]}  Nf6 {[%clk 0:01:53]} 30. Rf1 {[%clk 0:00:54]}  Rf7 {[%clk 0:01:05]} 31. Qh8+ {[%clk 0:00:52]}  Ke7 {[%clk 0:01:03]} 32. Nf4 {[%clk 0:00:51]}  Kd7 {[%clk 0:00:54]} 33. Rd1+ {[%clk 0:00:48]}  Nd6 {[%clk 0:00:54]} 34. Nd3 {[%clk 0:00:43]}  Nde4 {[%clk 0:00:18]} 35. Ne5+ {[%clk 0:00:36]}  Ke7 {[%clk 0:00:18]} 36. Ng6# {[%clk 0:00:37]} 1-0


[Site "https://www.chess.com"]

[Event "Titled Tuesday Blitz November 01 Early 2022"]
[White "Quirke, Jeffrey"]
[Black "Unat, Can Haktan"]
[WhiteFideId "2013029"]
[BlackFideId "6398073"]
[WhiteElo "2207"]
[BlackElo "2146"]
[Result "0-1"]
[Round "04"]
[TimeControl "180+1"]
[Date "2022.11.02"]
[WhiteClock "0:00:03"]
[BlackClock "0:01:01"]

1. e4 {[%clk 0:03:00]}  c5 {[%clk 0:02:56]} 2. Nc3 {[%clk 0:03:00]}  g6 {[%clk 0:02:51]} 3. f4 {[%clk 0:02:58]}  Bg7 {[%clk 0:02:50]} 4. Nf3 {[%clk 0:02:56]}  e6 {[%clk 0:02:51]} 5. d4 {[%clk 0:02:45]}  cxd4 {[%clk 0:02:47]} 6. Nxd4 {[%clk 0:02:45]}  d5 {[%clk 0:02:48]} 7. exd5 {[%clk 0:02:40]}  exd5 {[%clk 0:02:48]} 8. Bb5+ {[%clk 0:02:38]}  Bd7 {[%clk 0:02:39]} 9. Qe2+ {[%clk 0:02:31]}  Ne7 {[%clk 0:02:36]} 10. Be3 {[%clk 0:02:22]}  O-O {[%clk 0:02:29]} 11. O-O-O {[%clk 0:02:21]}  Nbc6 {[%clk 0:02:27]} 12. g4 {[%clk 0:02:05]}  a6 {[%clk 0:02:15]} 13. Bxc6 {[%clk 0:02:04]}  bxc6 {[%clk 0:02:13]} 14. Na4 {[%clk 0:01:51]}  Qa5 {[%clk 0:02:09]} 15. b3 {[%clk 0:01:47]}  c5 {[%clk 0:02:07]} 16. Nf3 {[%clk 0:01:24]}  Bxa4 {[%clk 0:01:55]} 17. bxa4 {[%clk 0:01:20]}  Rab8 {[%clk 0:01:55]} 18. Ne5 {[%clk 0:01:13]}  d4 {[%clk 0:01:33]} 19. Nd7 {[%clk 0:00:28]}  dxe3 {[%clk 0:01:28]} 20. Nxb8 {[%clk 0:00:26]}  Rxb8 {[%clk 0:01:24]} 21. Rd3 {[%clk 0:00:15]}  Bb2+ {[%clk 0:01:13]} 22. Kd1 {[%clk 0:00:15]}  Bc3 {[%clk 0:01:14]} 23. Qxe3 {[%clk 0:00:05]}  Rb1+ {[%clk 0:01:00]} 24. Ke2 {[%clk 0:00:05]}  Rxh1 {[%clk 0:01:01]} 25. Qxe7 {[%clk 0:00:04]}  Re1+ {[%clk 0:01:00]} 26. Kf2 {[%clk 0:00:03]}  Rxe7 {[%clk 0:01:01]} 0-1


[Site "https://www.chess.com"]

[Event "Titled Tuesday Blitz November 01 Early 2022"]
[White "Romero Ruscalleda, Josep"]
[Black "Agasarov, Benik"]
[WhiteFideId "2231859"]
[BlackFideId "13314823"]
[WhiteElo "2282"]
[BlackElo "2152"]
[Result "0-1"]
[Round "04"]
[TimeControl "180+1"]
[Date "2022.11.02"]
[WhiteClock "0:00:44"]
[BlackClock "0:00:27"]

1. e4 {[%clk 0:03:00]}  c5 {[%clk 0:02:59]} 2. c3 {[%clk 0:03:01]}  Nf6 {[%clk 0:02:52]} 3. e5 {[%clk 0:03:01]}  Nd5 {[%clk 0:02:52]} 4. Nf3 {[%clk 0:03:01]}  Nc6 {[%clk 0:02:44]} 5. Bc4 {[%clk 0:03:01]}  Nb6 {[%clk 0:02:43]} 6. Bb3 {[%clk 0:03:02]}  c4 {[%clk 0:02:42]} 7. Bc2 {[%clk 0:03:02]}  d5 {[%clk 0:02:41]} 8. exd6 {[%clk 0:03:02]}  Qxd6 {[%clk 0:02:41]} 9. O-O {[%clk 0:03:02]}  Bg4 {[%clk 0:02:38]} 10. Re1 {[%clk 0:03:02]}  e6 {[%clk 0:02:19]} 11. Qe2 {[%clk 0:03:01]}  Be7 {[%clk 0:02:17]} 12. b3 {[%clk 0:02:47]}  O-O {[%clk 0:01:56]} 13. bxc4 {[%clk 0:02:37]}  Bxf3 {[%clk 0:01:56]} 14. Qxf3 {[%clk 0:02:31]}  Nxc4 {[%clk 0:01:56]} 15. Qe4 {[%clk 0:02:29]}  g6 {[%clk 0:01:28]} 16. Qxc4 {[%clk 0:02:29]}  Rfc8 {[%clk 0:01:26]} 17. Ba3 {[%clk 0:02:22]}  Qd7 {[%clk 0:01:18]} 18. Bxe7 {[%clk 0:02:21]}  Nxe7 {[%clk 0:01:15]} 19. Qf4 {[%clk 0:02:20]}  Nd5 {[%clk 0:01:15]} 20. Qh6 {[%clk 0:02:17]}  Qe7 {[%clk 0:01:08]} 21. h4 {[%clk 0:02:14]}  Rc4 {[%clk 0:01:06]} 22. g3 {[%clk 0:01:54]}  Qf6 {[%clk 0:01:05]} 23. h5 {[%clk 0:01:45]}  Rg4 {[%clk 0:00:53]} 24. hxg6 {[%clk 0:01:37]}  fxg6 {[%clk 0:00:51]} 25. Qh3 {[%clk 0:01:12]}  Rf8 {[%clk 0:00:50]} 26. Qg2 {[%clk 0:01:10]}  Nf4 {[%clk 0:00:49]} 27. Qh2 {[%clk 0:00:56]}  Nh3+ {[%clk 0:00:48]} 28. Kh1 {[%clk 0:00:46]}  Nxf2+ {[%clk 0:00:44]} 29. Kg1 {[%clk 0:00:45]}  Nh3+ {[%clk 0:00:44]} 30. Kh1 {[%clk 0:00:45]}  Qf3+ {[%clk 0:00:26]} 31. Qg2 {[%clk 0:00:44]}  Nf2+ {[%clk 0:00:27]} 32. Kg1 {[%clk 0:00:44]}  Rxg3 {[%clk 0:00:27]} 0-1


[Site "https://www.chess.com"]

[Event "Titled Tuesday Blitz November 01 Early 2022"]
[White "Rustemov, Alexander"]
[Black "Jia, Haoxiang"]
[WhiteFideId "4119002"]
[BlackFideId "8602999"]
[WhiteElo "2934"]
[BlackElo "2641"]
[Result "1-0"]
[Round "04"]
[TimeControl "180+1"]
[Date "2022.11.01"]
[WhiteClock "0:00:46"]
[BlackClock "0:00:48"]

1. d4 {[%clk 0:03:00]}  Nf6 {[%clk 0:02:59]} 2. c4 {[%clk 0:03:00]}  g6 {[%clk 0:02:59]} 3. Nf3 {[%clk 0:03:00]}  Bg7 {[%clk 0:02:59]} 4. g3 {[%clk 0:03:00]}  d6 {[%clk 0:03:00]} 5. Bg2 {[%clk 0:03:00]}  O-O {[%clk 0:03:01]} 6. Nc3 {[%clk 0:03:00]}  Nc6 {[%clk 0:03:01]} 7. O-O {[%clk 0:03:00]}  a6 {[%clk 0:03:01]} 8. h3 {[%clk 0:02:59]}  Rb8 {[%clk 0:03:01]} 9. e4 {[%clk 0:02:59]}  b5 {[%clk 0:02:59]} 10. d5 {[%clk 0:02:59]}  Na5 {[%clk 0:02:59]} 11. cxb5 {[%clk 0:02:59]}  axb5 {[%clk 0:02:59]} 12. b4 {[%clk 0:02:59]}  Nc4 {[%clk 0:02:57]} 13. Nd4 {[%clk 0:02:59]}  Bd7 {[%clk 0:02:57]} 14. a4 {[%clk 0:03:00]}  bxa4 {[%clk 0:02:52]} 15. b5 {[%clk 0:03:00]}  e5 {[%clk 0:02:46]} 16. Nc6 {[%clk 0:03:00]}  Bxc6 {[%clk 0:02:38]} 17. dxc6 {[%clk 0:03:01]}  Nb6 {[%clk 0:02:29]} 18. Be3 {[%clk 0:02:59]}  Nh5 {[%clk 0:02:23]} 19. Bxb6 {[%clk 0:02:45]}  Rxb6 {[%clk 0:02:21]} 20. Rxa4 {[%clk 0:02:45]}  Qg5 {[%clk 0:02:15]} 21. Qd3 {[%clk 0:02:42]}  f5 {[%clk 0:02:13]} 22. Nd5 {[%clk 0:02:41]}  fxe4 {[%clk 0:02:12]} 23. Bxe4 {[%clk 0:02:37]}  Rbb8 {[%clk 0:02:02]} 24. Kh2 {[%clk 0:02:31]}  Rf7 {[%clk 0:02:00]} 25. Qe2 {[%clk 0:01:21]}  Rbf8 {[%clk 0:01:57]} 26. Ra3 {[%clk 0:01:16]}  Bh6 {[%clk 0:01:48]} 27. Rf3 {[%clk 0:01:14]}  Ng7 {[%clk 0:01:45]} 28. Nxc7 {[%clk 0:01:03]}  Rxf3 {[%clk 0:01:12]} 29. Bxf3 {[%clk 0:01:02]}  Kh8 {[%clk 0:00:59]} 30. b6 {[%clk 0:00:59]}  Nf5 {[%clk 0:00:53]} 31. Ne6 {[%clk 0:00:57]}  Qf6 {[%clk 0:00:53]} 32. Nxf8 {[%clk 0:00:56]}  Nd4 {[%clk 0:00:53]} 33. Nd7 {[%clk 0:00:47]}  Nxf3+ {[%clk 0:00:48]} 34. Kg2 {[%clk 0:00:46]} 1-0


[Site "https://www.chess.com"]

[Event "Titled Tuesday Blitz November 01 Early 2022"]
[White "Sailer, Mike"]
[Black "Postnikov, Daniil"]
[WhiteFideId "2012901"]
[BlackFideId "4166329"]
[WhiteElo "2109"]
[BlackElo "2261"]
[Result "0-1"]
[Round "04"]
[TimeControl "180+1"]
[Date "2022.11.02"]
[WhiteClock "0:00:03"]
[BlackClock "0:01:24"]

1. Nf3 {[%clk 0:03:00]}  Nf6 {[%clk 0:02:59]} 2. g3 {[%clk 0:02:56]}  g6 {[%clk 0:03:00]} 3. Bg2 {[%clk 0:02:56]}  Bg7 {[%clk 0:03:01]} 4. c4 {[%clk 0:02:56]}  O-O {[%clk 0:03:01]} 5. Nc3 {[%clk 0:02:56]}  c5 {[%clk 0:03:00]} 6. O-O {[%clk 0:02:55]}  Nc6 {[%clk 0:02:59]} 7. a3 {[%clk 0:02:49]}  d5 {[%clk 0:02:58]} 8. cxd5 {[%clk 0:02:49]}  Nxd5 {[%clk 0:02:59]} 9. Nxd5 {[%clk 0:02:43]}  Qxd5 {[%clk 0:03:00]} 10. d3 {[%clk 0:02:40]}  Bg4 {[%clk 0:02:55]} 11. Rb1 {[%clk 0:02:36]}  Qd7 {[%clk 0:02:47]} 12. Be3 {[%clk 0:02:23]}  Nd4 {[%clk 0:02:42]} 13. Nxd4 {[%clk 0:02:14]}  cxd4 {[%clk 0:02:43]} 14. Bg5 {[%clk 0:02:04]}  Rac8 {[%clk 0:02:43]} 15. Qd2 {[%clk 0:02:00]}  Rfd8 {[%clk 0:02:20]} 16. Rfc1 {[%clk 0:01:59]}  b6 {[%clk 0:02:12]} 17. Kf1 {[%clk 0:01:25]}  Bh3 {[%clk 0:02:08]} 18. Rxc8 {[%clk 0:01:23]}  Rxc8 {[%clk 0:02:07]} 19. Rc1 {[%clk 0:01:23]}  Bxg2+ {[%clk 0:01:53]} 20. Kxg2 {[%clk 0:01:21]}  Qe6 {[%clk 0:01:46]} 21. Rxc8+ {[%clk 0:01:16]}  Qxc8 {[%clk 0:01:47]} 22. Qc1 {[%clk 0:01:04]}  Qxc1 {[%clk 0:01:46]} 23. Bxc1 {[%clk 0:01:03]}  f5 {[%clk 0:01:46]} 24. b3 {[%clk 0:00:58]}  e5 {[%clk 0:01:44]} 25. e3 {[%clk 0:00:56]}  dxe3 {[%clk 0:01:40]} 26. fxe3 {[%clk 0:00:56]}  e4 {[%clk 0:01:36]} 27. dxe4 {[%clk 0:00:53]}  fxe4 {[%clk 0:01:37]} 28. g4 {[%clk 0:00:46]}  b5 {[%clk 0:01:34]} 29. a4 {[%clk 0:00:44]}  bxa4 {[%clk 0:01:32]} 30. bxa4 {[%clk 0:00:44]}  Kf7 {[%clk 0:01:32]} 31. Ba3 {[%clk 0:00:28]}  Ke6 {[%clk 0:01:30]} 32. Bc5 {[%clk 0:00:26]}  a6 {[%clk 0:01:30]} 33. Kf2 {[%clk 0:00:17]}  Kd5 {[%clk 0:01:30]} 34. Be7 {[%clk 0:00:13]}  Kc4 {[%clk 0:01:31]} 35. Ke2 {[%clk 0:00:07]}  Kb3 {[%clk 0:01:28]} 36. a5 {[%clk 0:00:07]}  Bc3 {[%clk 0:01:24]} 37. Bd8 {[%clk 0:00:06]}  Ka4 {[%clk 0:01:24]} 38. Kd1 {[%clk 0:00:03]}  Bxa5 {[%clk 0:01:24]} 39. Be7 {[%clk 0:00:03]}  Bb4 {[%clk 0:01:24]} 40. Kc2 {[%clk 0:00:03]}  Bxe7 {[%clk 0:01:24]} 0-1


[Site "https://www.chess.com"]

[Event "Titled Tuesday Blitz November 01 Early 2022"]
[White "Samarth, J Rao"]
[Black "Goryachkina, Aleksandra"]
[WhiteFideId "46652370"]
[BlackFideId "4147103"]
[WhiteElo "1564"]
[BlackElo "2484"]
[Result "0-1"]
[Round "04"]
[TimeControl "180+1"]
[Date "2022.11.02"]
[WhiteClock "0:00:01"]
[BlackClock "0:00:45"]

1. c4 {[%clk 0:02:53]}  Nf6 {[%clk 0:02:59]} 2. Nc3 {[%clk 0:02:53]}  e6 {[%clk 0:02:57]} 3. e4 {[%clk 0:02:53]}  d5 {[%clk 0:02:58]} 4. e5 {[%clk 0:02:53]}  d4 {[%clk 0:02:54]} 5. exf6 {[%clk 0:02:54]}  dxc3 {[%clk 0:02:53]} 6. bxc3 {[%clk 0:02:55]}  Qxf6 {[%clk 0:02:52]} 7. d4 {[%clk 0:02:49]}  b6 {[%clk 0:02:36]} 8. Nf3 {[%clk 0:02:46]}  Bb7 {[%clk 0:02:36]} 9. Bd3 {[%clk 0:02:46]}  Bxf3 {[%clk 0:02:14]} 10. gxf3 {[%clk 0:02:13]}  Bd6 {[%clk 0:01:59]} 11. f4 {[%clk 0:02:03]}  Nd7 {[%clk 0:01:48]} 12. f5 {[%clk 0:01:47]}  e5 {[%clk 0:01:34]} 13. Qg4 {[%clk 0:01:18]}  h6 {[%clk 0:01:26]} 14. Rg1 {[%clk 0:01:01]}  O-O {[%clk 0:01:17]} 15. Be3 {[%clk 0:00:39]}  Rfe8 {[%clk 0:01:08]} 16. O-O-O {[%clk 0:00:28]}  exd4 {[%clk 0:01:03]} 17. cxd4 {[%clk 0:00:15]}  c5 {[%clk 0:01:03]} 18. Be4 {[%clk 0:00:14]}  Rad8 {[%clk 0:01:02]} 19. Bc6 {[%clk 0:00:10]}  cxd4 {[%clk 0:00:46]} 20. Bxd4 {[%clk 0:00:05]}  Be5 {[%clk 0:00:47]} 21. Bxe5 {[%clk 0:00:01]}  Nxe5 {[%clk 0:00:45]} 0-1


[Site "https://www.chess.com"]

[Event "Titled Tuesday Blitz November 01 Early 2022"]
[White "Sarana, Alexey"]
[Black "Maximov, Dmitry"]
[WhiteFideId "24133795"]
[BlackFideId "14105659"]
[WhiteElo "2689"]
[BlackElo "2494"]
[Result "1-0"]
[Round "04"]
[TimeControl "180+1"]
[Date "2022.11.01"]
[WhiteClock "0:00:39"]
[BlackClock "0:00:02"]

1. c4 {[%clk 0:03:00]}  Nf6 {[%clk 0:02:59]} 2. Nc3 {[%clk 0:03:00]}  g6 {[%clk 0:03:00]} 3. e4 {[%clk 0:02:59]}  d6 {[%clk 0:03:00]} 4. d4 {[%clk 0:03:00]}  Bg7 {[%clk 0:03:00]} 5. Be2 {[%clk 0:03:00]}  O-O {[%clk 0:03:00]} 6. Be3 {[%clk 0:03:01]}  e5 {[%clk 0:02:53]} 7. d5 {[%clk 0:03:01]}  a5 {[%clk 0:02:50]} 8. g4 {[%clk 0:02:59]}  Na6 {[%clk 0:02:50]} 9. g5 {[%clk 0:03:00]}  Nd7 {[%clk 0:02:49]} 10. h4 {[%clk 0:02:59]}  f5 {[%clk 0:02:42]} 11. gxf6 {[%clk 0:02:59]}  Bxf6 {[%clk 0:02:32]} 12. h5 {[%clk 0:02:58]}  g5 {[%clk 0:02:32]} 13. h6 {[%clk 0:02:54]}  Ndc5 {[%clk 0:02:31]} 14. Nf3 {[%clk 0:02:53]}  Kh8 {[%clk 0:02:27]} 15. Qd2 {[%clk 0:02:53]}  g4 {[%clk 0:02:24]} 16. Nh2 {[%clk 0:02:53]}  Rg8 {[%clk 0:02:21]} 17. Rg1 {[%clk 0:02:51]}  Nb4 {[%clk 0:02:08]} 18. Bxc5 {[%clk 0:02:19]}  dxc5 {[%clk 0:02:07]} 19. a3 {[%clk 0:02:20]}  g3 {[%clk 0:01:50]} 20. Rxg3 {[%clk 0:01:47]}  Rxg3 {[%clk 0:01:48]} 21. fxg3 {[%clk 0:01:47]}  Bg5 {[%clk 0:01:48]} 22. Qd1 {[%clk 0:01:47]}  Ra6 {[%clk 0:01:30]} 23. axb4 {[%clk 0:01:32]}  Rxh6 {[%clk 0:01:29]} 24. Nf1 {[%clk 0:01:31]}  cxb4 {[%clk 0:01:29]} 25. Nb5 {[%clk 0:01:30]}  Qf8 {[%clk 0:01:10]} 26. Qd3 {[%clk 0:01:11]}  Rf6 {[%clk 0:00:58]} 27. Nxc7 {[%clk 0:01:01]}  Qc5 {[%clk 0:00:56]} 28. Ne6 {[%clk 0:00:55]}  Qf2+ {[%clk 0:00:49]} 29. Kd1 {[%clk 0:00:55]}  Bxe6 {[%clk 0:00:45]} 30. dxe6 {[%clk 0:00:55]}  Rxe6 {[%clk 0:00:36]} 31. Rxa5 {[%clk 0:00:54]}  Kg7 {[%clk 0:00:23]} 32. Kc2 {[%clk 0:00:49]}  Be7 {[%clk 0:00:19]} 33. Nd2 {[%clk 0:00:47]}  Qe1 {[%clk 0:00:18]} 34. Rd5 {[%clk 0:00:45]}  Ra6 {[%clk 0:00:13]} 35. Rd7 {[%clk 0:00:43]}  Kf6 {[%clk 0:00:07]} 36. Bh5 {[%clk 0:00:40]}  b3+ {[%clk 0:00:04]} 37. Nxb3 {[%clk 0:00:40]}  Qf2+ {[%clk 0:00:04]} 38. Nd2 {[%clk 0:00:40]}  Rb6 {[%clk 0:00:02]} 39. Qf3+ {[%clk 0:00:40]}  Qxf3 {[%clk 0:00:02]} 40. Nxf3 {[%clk 0:00:41]}  Ke6 {[%clk 0:00:02]} 41. Bg4+ {[%clk 0:00:40]}  Kf7 {[%clk 0:00:02]} 42. Nxe5+ {[%clk 0:00:39]} 1-0


[Site "https://www.chess.com"]

[Event "Titled Tuesday Blitz November 01 Early 2022"]
[White "Shaik Sumer Arsh"]
[Black "Matinian, Nikita"]
[WhiteFideId "45020000"]
[BlackFideId "24129100"]
[WhiteElo "2190"]
[BlackElo "2422"]
[Result "0-1"]
[Round "04"]
[TimeControl "180+1"]
[Date "2022.11.02"]
[WhiteClock "0:00:03"]
[BlackClock "0:01:27"]

1. d4 {[%clk 0:02:36]}  Nf6 {[%clk 0:02:58]} 2. c4 {[%clk 0:02:35]}  g6 {[%clk 0:02:58]} 3. Nc3 {[%clk 0:02:35]}  d5 {[%clk 0:02:58]} 4. Nf3 {[%clk 0:02:34]}  Bg7 {[%clk 0:02:58]} 5. h4 {[%clk 0:02:34]}  c6 {[%clk 0:02:57]} 6. cxd5 {[%clk 0:02:34]}  cxd5 {[%clk 0:02:57]} 7. Bf4 {[%clk 0:02:31]}  Nc6 {[%clk 0:02:54]} 8. e3 {[%clk 0:02:32]}  Qb6 {[%clk 0:02:51]} 9. Qd2 {[%clk 0:02:21]}  Bg4 {[%clk 0:02:44]} 10. Ne5 {[%clk 0:02:21]}  Be6 {[%clk 0:02:38]} 11. Bb5 {[%clk 0:02:17]}  O-O {[%clk 0:02:35]} 12. Bxc6 {[%clk 0:02:15]}  bxc6 {[%clk 0:02:36]} 13. O-O {[%clk 0:02:14]}  Ne4 {[%clk 0:02:30]} 14. Nxe4 {[%clk 0:02:09]}  dxe4 {[%clk 0:02:31]} 15. Rfc1 {[%clk 0:02:09]}  Rfc8 {[%clk 0:02:30]} 16. Qc2 {[%clk 0:01:59]}  Bd5 {[%clk 0:02:28]} 17. Nd7 {[%clk 0:01:55]}  Qd8 {[%clk 0:02:23]} 18. Nc5 {[%clk 0:01:53]}  f5 {[%clk 0:02:19]} 19. b4 {[%clk 0:01:39]}  e6 {[%clk 0:02:19]} 20. a4 {[%clk 0:01:37]}  Qxh4 {[%clk 0:02:19]} 21. b5 {[%clk 0:01:24]}  g5 {[%clk 0:02:19]} 22. Bg3 {[%clk 0:01:23]}  Qg4 {[%clk 0:02:19]} 23. Qd2 {[%clk 0:01:19]}  h5 {[%clk 0:02:15]} 24. bxc6 {[%clk 0:01:14]}  Rxc6 {[%clk 0:02:15]} 25. Nd7 {[%clk 0:01:10]}  Rxc1+ {[%clk 0:02:12]} 26. Rxc1 {[%clk 0:01:11]}  h4 {[%clk 0:02:13]} 27. Be5 {[%clk 0:01:06]}  h3 {[%clk 0:02:12]} 28. f4 {[%clk 0:00:45]}  exf3 {[%clk 0:02:12]} 29. Bxg7 {[%clk 0:00:37]}  Kxg7 {[%clk 0:02:10]} 30. Ne5 {[%clk 0:00:33]}  Qxg2+ {[%clk 0:02:08]} 31. Qxg2 {[%clk 0:00:34]}  fxg2 {[%clk 0:02:07]} 32. Rc7+ {[%clk 0:00:35]}  Kh6 {[%clk 0:02:04]} 33. Nf7+ {[%clk 0:00:35]}  Kh5 {[%clk 0:02:04]} 34. Ne5 {[%clk 0:00:33]}  Rh8 {[%clk 0:02:00]} 35. Rg7 {[%clk 0:00:28]}  g4 {[%clk 0:01:57]} 36. Nf7 {[%clk 0:00:26]}  Kh4 {[%clk 0:01:42]} 37. Nxh8 {[%clk 0:00:17]}  Kg3 {[%clk 0:01:41]} 38. Rh7 {[%clk 0:00:15]}  Kf3 {[%clk 0:01:39]} 39. Nf7 {[%clk 0:00:13]}  Kxe3 {[%clk 0:01:39]} 40. Ng5 {[%clk 0:00:11]}  Kxd4 {[%clk 0:01:37]} 41. Rxa7 {[%clk 0:00:10]}  e5 {[%clk 0:01:38]} 42. Rd7 {[%clk 0:00:10]}  f4 {[%clk 0:01:37]} 43. a5 {[%clk 0:00:09]}  f3 {[%clk 0:01:29]} 44. a6 {[%clk 0:00:09]}  Ke3 {[%clk 0:01:27]} 45. Nxf3 {[%clk 0:00:01]}  gxf3 {[%clk 0:01:26]} 46. Rxd5 {[%clk 0:00:01]}  f2+ {[%clk 0:01:25]} 47. Kh2 {[%clk 0:00:02]}  g1=Q+ {[%clk 0:01:26]} 48. Kxh3 {[%clk 0:00:02]}  Qh1+ {[%clk 0:01:26]} 49. Kg4 {[%clk 0:00:03]}  Qxd5 {[%clk 0:01:27]} 0-1


[Site "https://www.chess.com"]